bitfinex/quotes_ETHUSD_20250326
["timestamp","ask_amount","ask_price","bid_price","bid_amount"]
[1743004362142,0.8097,2020.0,2019.3,5.72474]
[1743004362344,0.57092834,2019.9,2019.3,0.7726]
[1743004362667,4.13870674,2019.7,2019.4,4.95173]
[1743004362869,3.18995834,2019.9,2019.3,0.82211966]
[1743004363048,7.13870674,2019.9,2019.7,4.95109]
[1743004363391,7.13870674,2019.9,2019.8,15.2774]
[1743004363771,4.13870674,2020.1,2019.8,20.22838]
[1743004363973,3.0,2020.0,2019.9,4.95059]
[1743004364281,4.13870674,2020.1,2020.0,4.95039]
[1743004364583,7.13870674,2020.1,2020.0,4.95039]
[1743004364980,3.0,2020.1,2020.0,4.95039]
[1743004365363,5.24536336,2020.5,2020.1,5.76394]
[1743004365551,4.13870674,2020.4,2020.2,4.94991]
[1743004365891,3.0,2020.3,2020.2,4.94989]
[1743004367005,3.0,2020.3,2020.1,5.76394]
[1743004367196,4.13870674,2020.2,2020.1,0.8137]
[1743004369288,3.0,2020.4,2020.1,0.8137]
[1743004369499,4.13870674,2020.2,2020.1,5.76394]
[1743004369711,3.0,2020.4,2020.1,5.76394]
[1743004369712,4.13870674,2020.4,2020.1,5.76394]
[1743004370409,4.13870674,2020.4,2020.2,4.94992]
[1743004370578,4.13870674,2020.4,2020.1,5.76394]
[1743004371183,4.13870674,2020.4,2020.1,10.71406]
[1743004371383,4.13870674,2020.4,2020.1,5.76382]
[1743004371598,4.13870674,2020.2,2020.1,0.8137]
[1743004371908,4.13870674,2020.2,2019.9,0.7659]
[1743004371909,3.0,2020.1,2019.9,0.7659]
[1743004372274,3.0,2020.1,2019.9,5.71658]
[1743004373087,3.0,2020.1,2019.9,0.7659]
[1743004375114,0.19373963,2020.0,2019.9,0.7659]
[1743004375614,3.0,2020.1,2019.9,0.7659]
[1743004375813,0.19293313,2020.0,2019.9,0.7659]
[1743004376021,3.0,2020.1,2019.9,5.71664]
[1743004376216,0.19212296,2020.0,2019.9,5.71664]
[1743004376519,3.0,2020.1,2019.9,5.71664]
[1743004376824,0.19212296,2020.0,2019.9,5.71664]
[1743004377128,3.0,2020.1,2019.9,5.71664]
[1743004377618,0.19212296,2020.0,2019.9,10.66722]
[1743004377811,3.0,2020.1,2020.0,4.95049]
[1743004378123,3.19230301,2020.1,2020.0,4.95049]
[1743004378624,3.19230301,2020.1,2020.0,19.45049]
[1743004379012,3.19230301,2020.1,2020.0,14.5]
[1743004379708,3.19230301,2020.1,2020.0,19.45049]
[1743004380511,3.19230301,2020.1,2020.0,14.5]
[1743004380708,3.19230301,2020.1,2019.9,0.7659]
[1743004380906,3.0,2019.9,2019.7,0.799]
[1743004381111,3.0,2019.7,2019.5,11.89068]
[1743004381427,0.19230301,2019.6,2019.5,11.89068]
[1743004381627,3.0,2019.7,2019.5,11.89068]
[1743004382043,3.0,2019.7,2019.5,11.89059]
[1743004382330,3.0,2019.7,2019.3,4.95216]
[1743004382331,4.13870674,2019.6,2019.3,4.95216]
[1743004382495,4.13870674,2019.6,2019.4,14.5]
[1743004382697,0.192258,2019.5,2019.4,19.45194]
[1743004383024,4.13870674,2019.6,2019.4,19.45194]
[1743004383196,4.13870674,2019.6,2019.4,14.5]
[1743004383400,4.13870674,2019.6,2019.4,19.45179]
[1743004383605,4.13870674,2019.6,2019.2,5.71337]
[1743004383910,0.192258,2019.5,2019.2,5.71337]
[1743004384098,0.192258,2019.5,2019.3,14.5]
[1743004385133,0.192258,2019.5,2019.3,19.45213]
[1743004385357,4.13870674,2019.4,2019.3,14.5]
[1743004385514,3.0,2019.3,2018.8,5.74113]
[1743004385716,4.13870674,2019.0,2018.8,5.74113]
[1743004385935,7.13870674,2019.0,2018.9,14.5]
[1743004386724,12.81053741,2019.0,2018.9,14.5]
[1743004386954,3.0,2018.9,2018.5,0.8012]
[1743004387124,4.13870674,2018.8,2018.5,0.8012]
[1743004387319,4.13870674,2018.8,2018.4,5.071658]
[1743004387623,4.13870674,2018.6,2018.5,14.5]
[1743004387825,7.13870674,2018.6,2018.5,14.5]
[1743004388923,3.0,2018.5,2018.4,0.117318]
[1743004389124,4.13870674,2018.6,2018.4,0.117318]
[1743004390136,0.18261998,2018.5,2018.4,0.117318]
[1743004391626,4.13870674,2018.6,2018.4,0.117318]
[1743004391827,0.18261998,2018.5,2018.4,0.117318]
[1743004392041,4.13870674,2018.6,2018.4,0.117318]
[1743004392248,0.18261998,2018.5,2018.4,0.117318]
[1743004392444,0.18261998,2018.5,2018.4,14.617318]
[1743004392645,4.87240419,2018.5,2018.4,14.617318]
[1743004392850,12.75440419,2018.5,2018.4,0.117318]
[1743004395778,3.18261998,2018.5,2018.4,0.894518]
[1743004395931,7.32132672,2018.5,2018.4,0.117318]
[1743004396132,7.13870674,2018.5,2018.4,0.117318]
[1743004396326,7.31952359,2018.5,2018.4,0.117318]
[1743004396884,7.31952359,2018.5,2018.4,14.617318]
[1743004398065,7.31952359,2018.5,2018.4,0.117318]
[1743004399029,3.18081685,2018.5,2018.4,5.856028]
[1743004399597,3.18081685,2018.5,2018.4,0.901618]
[1743004399786,7.31952359,2018.5,2018.4,0.117318]
[1743004399950,8.08913075,2018.5,2018.4,0.117318]
[1743004400155,7.31952359,2018.5,2018.4,0.117318]
[1743004403562,7.31952359,2018.5,2018.4,14.617318]
[1743004404769,7.31952359,2018.5,2018.4,19.571728]
[1743004405164,7.31952359,2018.5,2018.4,14.617318]
[1743004407379,7.31952359,2018.5,2018.4,0.117318]
[1743004407742,3.18081685,2018.5,2018.4,19.571728]
[1743004407940,3.18081685,2018.5,2018.4,22.7958508]
[1743004408270,3.18081685,2018.5,2018.4,20.343228]
[1743004409093,3.18081685,2018.5,2018.4,15.388818]
[1743004409787,3.18081685,2018.5,2018.4,14.617318]
[1743004409989,3.18081685,2018.5,2018.4,0.117318]
[1743004411596,0.18081685,2018.5,2018.4,5.92827272]
[1743004411889,4.13870674,2018.8,2018.5,9.90808]
[1743004412085,3.16302996,2018.7,2018.5,4.95403]
[1743004412292,4.13870674,2018.6,2018.4,5.878708]
[1743004412445,0.16379758,2018.5,2018.4,5.071708]
[1743004412645,4.13870674,2018.6,2018.4,5.071648]
[1743004412886,4.13870674,2018.6,2018.5,4.95417]
[1743004413416,0.795,2019.0,2018.6,9.90784]
[1743004413557,3.0,2018.8,2018.6,9.90784]
[1743004414358,3.0,2018.8,2018.6,4.95392]
[1743004415359,3.0,2018.8,2018.6,9.90768]
[1743004415557,3.0,2018.8,2018.6,4.95376]
[1743004415760,3.0,2018.8,2018.6,19.45376]
[1743004416561,4.13870674,2018.7,2018.6,14.5]
[1743004416889,4.13870674,2018.7,2018.6,19.45392]
[1743004417387,4.13870674,2018.7,2018.6,14.5]
[1743004417793,4.13870674,2018.7,2018.4,5.071698]
[1743004418084,5.34077741,2018.7,2018.4,10.025968]
[1743004418290,4.13870674,2018.7,2018.5,19.45408]
[1743004418488,4.13870674,2018.7,2018.5,14.5]
[1743004419773,4.13870674,2018.7,2018.5,19.45399]
[1743004419984,3.0,2018.8,2018.6,5.75059]
[1743004420286,3.0,2018.8,2018.6,10.70438]
[1743004420650,3.0,2018.8,2018.7,4.95368]
[1743004420847,3.0,2018.8,2018.6,10.70438]
[1743004421046,3.0,2018.8,2018.6,10.70437]
[1743004421283,4.13870674,2018.7,2018.4,0.923718]
[1743004421582,7.13870674,2018.5,2018.4,0.117318]
[1743004427482,3.0,2018.5,2018.4,0.117318]
[1743004427786,7.13870674,2018.5,2018.4,0.117318]
[1743004428084,4.13870674,2018.7,2018.4,5.860428]
[1743004428283,3.0,2018.6,2018.4,5.860268]
[1743004429013,3.0,2018.6,2018.5,4.95416]
[1743004429597,3.0,2018.6,2018.4,5.860358]
[1743004429886,3.0,2018.6,2018.4,10.814618]
[1743004430086,3.0,2018.6,2018.5,4.95417]
[1743004430294,3.0,2018.6,2018.4,5.860278]
[1743004430473,3.0,2018.6,2018.4,5.071578]
[1743004430807,4.13870674,2018.5,2018.4,0.117318]
[1743004431346,4.13870674,2018.5,2018.4,5.071728]
[1743004431508,4.13870674,2018.5,2018.4,0.117318]
[1743004431941,4.13870674,2018.5,2018.4,5.071728]
[1743004432241,4.13870674,2018.5,2018.4,0.117318]
[1743004432933,4.13870674,2018.5,2018.4,5.071728]
[1743004433495,3.0,2018.6,2018.4,5.071728]
[1743004434096,3.0,2018.6,2018.4,10.026058]
[1743004434398,3.0,2018.6,2018.4,5.071648]
[1743004434690,3.0,2018.6,2018.4,10.025978]
[1743004434894,3.0,2018.6,2018.4,10.025908]
[1743004435208,0.16321805,2018.5,2018.4,5.071578]
[1743004435624,4.30192479,2018.5,2018.4,0.117318]
[1743004436070,4.30192479,2018.5,2018.4,5.071728]
[1743004436548,0.16321805,2018.5,2018.4,5.071728]
[1743004439619,0.15774796,2018.5,2018.4,6.8265448]
[1743004439862,3.0,2018.8,2018.7,4.95368]
[1743004440157,3.15774796,2018.8,2018.7,4.95368]
[1743004440326,3.15774796,2018.8,2018.6,4.95386]
[1743004441258,3.0,2018.6,2018.5,4.95409]
[1743004441457,3.15937355,2018.6,2018.5,4.95409]
[1743004442370,0.15937355,2018.6,2018.5,9.90811]
[1743004442573,0.15937355,2018.6,2018.5,10.4826508]
[1743004442733,3.0,2018.8,2018.7,4.95368]
[1743004444272,12.80410674,2019.1,2018.8,4.95329]
[1743004444442,12.01770674,2019.1,2018.8,4.95329]
[1743004444646,12.01770674,2019.1,2018.8,9.90658]
[1743004445134,9.84840674,2019.3,2018.8,1.067738]
[1743004445331,9.84840674,2019.3,2019.0,4.95286]
[1743004445553,3.0,2019.2,2019.0,4.95286]
[1743004445867,3.0,2019.2,2019.0,4.40286]
[1743004446370,3.0,2019.2,2019.0,9.35569]
[1743004446543,4.13870674,2019.1,2018.9,4.95315]
[1743004447065,0.16055479,2019.0,2018.9,4.95315]
[1743004448183,0.16055479,2019.0,2018.7,4.95364]
[1743004448474,4.13870674,2018.9,2018.7,4.95364]
[1743004448948,3.16055479,2018.8,2018.5,4.95413]
[1743004449141,3.0,2018.6,2018.4,4.971638]
[1743004449349,3.0,2018.6,2018.4,0.017318]
[1743004449533,4.29944207,2018.5,2018.4,0.017318]
[1743004449940,0.16073533,2018.5,2018.4,0.017318]
[1743004450143,3.0,2018.6,2018.4,4.971578]
[1743004450382,0.15965195,2018.5,2018.4,9.925868]
[1743004450688,3.0,2018.6,2018.4,4.971578]
[1743004450888,0.15911017,2018.5,2018.4,4.971578]
[1743004451095,3.0,2018.6,2018.4,4.971578]
[1743004451277,0.15911017,2018.5,2018.4,4.971578]
[1743004451456,3.0,2018.6,2018.4,4.971578]
[1743004451656,0.15911017,2018.5,2018.4,0.017318]
[1743004452092,0.15911017,2018.5,2018.4,4.971728]
[1743004457286,0.15911017,2018.5,2018.4,0.017318]
[1743004457581,0.15911017,2018.5,2018.4,4.971728]
[1743004458261,0.15911017,2018.5,2018.4,5.786528]
[1743004458471,3.0,2018.8,2018.5,4.954]
[1743004458649,0.15883925,2018.7,2018.5,4.954]
[1743004459405,0.15883925,2018.7,2018.6,4.95392]
[1743004460202,0.15883925,2018.7,2018.5,4.954]
[1743004460366,0.15883925,2018.7,2018.4,0.832118]
[1743004460561,3.0,2018.6,2018.4,0.832118]
[1743004460803,3.0,2018.6,2018.4,0.017318]
[1743004460993,3.7792916,2018.6,2018.4,4.971658]
[1743004461158,0.15883925,2018.5,2018.4,0.017318]
[1743004461487,0.15883925,2018.5,2018.4,4.971728]
[1743004462491,0.15883925,2018.5,2018.4,0.017318]
[1743004462895,0.15883925,2018.5,2018.4,4.971728]
[1743004466121,0.15883925,2018.5,2018.4,5.762628]
[1743004466603,0.15883925,2018.5,2018.4,5.81217046]
[1743004466900,7.13870674,2018.9,2018.6,4.95377]
[1743004467111,0.15883925,2018.8,2018.7,4.95368]
[1743004467261,28.59,2019.2,2019.1,4.9527]
[1743004467464,9.74880321,2019.5,2019.2,4.95236]
[1743004467465,4.87180321,2019.5,2019.2,4.95236]
[1743004467804,1.02439532,2019.4,2019.3,4.9521]
[1743004467963,4.02439532,2019.4,2019.3,4.9521]
[1743004468154,3.0,2019.4,2019.3,4.9521]
[1743004468708,4.87180321,2019.5,2019.3,4.95208]
[1743004468859,4.87180321,2019.5,2019.4,4.95196]
[1743004469300,9.82260674,2019.7,2019.4,4.95196]
[1743004469497,10.31772674,2019.7,2019.4,4.95196]
[1743004469704,3.0,2019.6,2019.3,4.95208]
[1743004470011,34.00808674,2019.9,2019.5,4.9515]
[1743004470164,34.00808674,2019.9,2019.4,5.75457]
[1743004470165,4.13870674,2019.7,2019.4,5.75457]
[1743004470368,3.0,2019.6,2019.4,5.75457]
[1743004470574,3.0,2019.6,2019.4,5.7545]
[1743004471060,3.0,2019.6,2019.5,4.95172]
[1743004472373,3.0,2019.6,2019.4,5.7545]
[1743004472576,3.0,2019.6,2019.4,9.9036]
[1743004472825,3.0,2019.6,2019.4,4.9518]
[1743004473002,4.13870674,2019.5,2019.2,5.76835]
[1743004473180,4.13870674,2019.3,2019.0,4.95292]
[1743004473378,4.93360674,2019.3,2019.0,4.95292]
[1743004473611,4.13870674,2019.1,2018.9,4.95314]
[1743004473907,3.0,2019.2,2018.9,4.95314]
[1743004474408,3.0,2019.2,2019.0,4.95284]
[1743004475500,3.0,2019.2,2018.9,4.95316]
[1743004475701,3.0,2019.2,2018.9,4.95304]
[1743004475899,3.0,2019.2,2019.0,4.95284]
[1743004476227,3.0,2019.2,2019.0,4.95281]
[1743004476725,3.49525,2019.2,2018.8,5.76925]
[1743004477275,3.49525,2019.2,2018.8,5.76918]
[1743004478325,4.13870674,2019.1,2018.8,5.76918]
[1743004478626,4.13870674,2019.1,2018.8,4.95326]
[1743004478821,4.13870674,2019.1,2018.8,4.95334]
[1743004479591,5.43863674,2018.9,2018.5,4.95402]
[1743004479820,5.98250041,2018.9,2018.5,4.95402]
[1743004480024,3.0,2018.8,2018.5,9.90807]
[1743004480225,3.16348866,2018.8,2018.5,4.95402]
[1743004481032,3.16348866,2018.8,2018.5,9.90803]
[1743004481227,3.16348866,2018.8,2018.6,4.9539]
[1743004483339,3.16348866,2018.8,2018.7,14.5]
[1743004483642,3.65882866,2018.8,2018.7,14.5]
[1743004484530,3.16348866,2018.8,2018.7,14.5]
[1743004484830,3.65882866,2018.8,2018.7,14.5]
[1743004485035,4.5633552,2018.8,2018.7,14.5]
[1743004485404,4.5633552,2018.8,2018.4,5.751478]
[1743004485605,3.65882866,2018.8,2018.4,5.751478]
[1743004485807,3.65882866,2018.8,2018.4,10.705768]
[1743004486005,3.65882866,2018.8,2018.4,25.205758]
[1743004486235,3.16348866,2018.8,2018.6,4.95383]
[1743004486539,0.16348866,2018.8,2018.6,4.95383]
[1743004486740,0.49532,2018.9,2018.6,4.95383]
[1743004486936,0.1623604,2018.8,2018.6,4.95376]
[1743004487240,3.0,2019.0,2018.7,10.72182]
[1743004487445,3.0,2019.0,2018.8,4.95335]
[1743004487649,0.1623604,2018.9,2018.8,4.95335]
[1743004491631,0.1623604,2018.9,2018.8,19.45335]
[1743004491831,0.1623604,2018.9,2018.8,22.72294798]
[1743004493359,0.7949,2019.4,2019.2,4.95228]
[1743004493549,9.01270674,2019.5,2019.3,4.95211]
[1743004493854,3.0,2019.4,2019.3,4.95211]
[1743004494523,3.0,2019.5,2019.3,9.9041]
[1743004494925,3.0,2019.5,2019.4,4.95196]
[1743004495125,3.16303735,2019.5,2019.4,4.95196]
[1743004495324,3.16303735,2019.5,2019.3,4.95199]
[1743004495551,7.30174409,2019.5,2019.3,4.95199]
[1743004495750,11.0690345,2019.5,2019.2,4.95239]
[1743004496024,11.0690345,2019.5,2019.1,4.95267]
[1743004496025,4.13870674,2019.3,2019.1,4.95267]
[1743004496220,4.13870674,2019.3,2019.0,4.95293]
[1743004496423,3.16466182,2019.2,2018.9,9.90612]
[1743004497238,3.16466182,2019.2,2018.9,9.90608]
[1743004498049,3.16466182,2019.2,2019.0,4.95294]
[1743004498246,3.16466182,2019.2,2019.0,9.90577]
[1743004498546,3.16466182,2019.2,2019.0,4.95283]
[1743004500334,3.99404068,2019.2,2018.9,19.45313]
[1743004500534,4.77924068,2019.2,2018.9,4.95313]
[1743004501862,4.77924068,2019.2,2018.9,9.90617]
[1743004502048,4.77924068,2019.2,2018.9,4.95304]
[1743004502049,3.94986182,2019.2,2018.9,4.95304]
[1743004502253,3.16466182,2019.2,2019.0,4.95292]
[1743004502424,3.16466182,2019.2,2018.9,4.95304]
[1743004502862,4.13870674,2019.1,2018.8,19.45332]
[1743004503462,4.13870674,2018.9,2018.8,14.5]
[1743004503758,4.30336856,2018.9,2018.8,14.5]
[1743004503966,0.16466182,2018.9,2018.8,19.45343]
[1743004505462,0.16466182,2018.9,2018.8,23.28033]
[1743004506061,0.37844838,2019.5,2018.8,23.28033]
[1743004506062,4.90190674,2019.6,2019.3,4.95208]
[1743004506224,3.0,2019.5,2019.3,4.95208]
[1743004506428,3.16335327,2019.5,2019.3,4.95208]
[1743004507135,4.13870674,2019.4,2019.2,19.45221]
[1743004507332,0.16588021,2019.3,2019.2,19.45221]
[1743004507832,0.91668021,2019.3,2018.8,9.9141]
[1743004508027,4.13870674,2019.2,2019.0,4.95292]
[1743004508241,4.13870674,2019.2,2019.1,14.5]
[1743004508442,4.13870674,2019.2,2019.1,19.4527]
[1743004508642,0.16588021,2019.2,2019.1,22.655749]
[1743004509046,3.0,2019.4,2019.3,4.95221]
[1743004509264,0.7508,2019.6,2019.5,4.95172]
[1743004509569,3.0,2019.7,2019.5,4.95172]
[1743004509768,3.0,2019.5,2019.4,4.95193]
[1743004509980,3.0,2019.5,2019.3,4.95219]
[1743004510263,4.30400039,2019.4,2019.1,19.45256]
[1743004510438,4.30400039,2019.4,2019.0,5.72923]
[1743004510439,4.13870674,2019.2,2019.0,5.72923]
[1743004510639,4.94630674,2019.2,2018.9,6.14]
[1743004510866,4.63400674,2019.0,2018.7,14.5]
[1743004511075,5.12931674,2019.0,2018.6,4.95384]
[1743004511234,0.1653839,2018.9,2018.6,9.90761]
[1743004511567,0.1653839,2018.9,2018.8,4.95343]
[1743004511773,3.0,2019.1,2018.9,4.95314]
[1743004511966,4.30409064,2019.0,2018.8,4.95343]
[1743004512146,4.30409064,2019.0,2018.7,20.20825]
[1743004512346,4.79938064,2019.0,2018.7,19.45365]
[1743004512750,4.79938064,2019.0,2018.7,14.5]
[1743004512957,4.79938064,2019.0,2018.7,19.45364]
[1743004513540,4.30409064,2019.0,2018.7,19.45354]
[1743004514774,3.0,2018.9,2018.7,19.45354]
[1743004515273,0.1653839,2018.8,2018.7,19.45354]
[1743004515570,3.0,2018.9,2018.7,19.45354]
[1743004515774,0.1653839,2018.8,2018.7,4.95354]
[1743004515942,3.0,2018.9,2018.7,4.95354]
[1743004516138,0.16403005,2018.8,2018.6,4.95389]
[1743004516343,0.16403005,2018.8,2018.6,14.5]
[1743004516545,5.54036142,2018.8,2018.6,14.5]
[1743004516761,0.16403005,2018.7,2018.6,14.5]
[1743004517443,0.16403005,2018.7,2018.4,4.971658]
[1743004517647,0.16403005,2018.7,2018.4,9.925928]
[1743004517964,0.16403005,2018.7,2018.5,14.5]
[1743004518143,5.54036142,2018.8,2018.5,14.5]
[1743004518346,0.16403005,2018.7,2018.5,14.5]
[1743004518550,5.54036142,2018.8,2018.5,14.5]
[1743004518759,0.16403005,2018.7,2018.5,14.5]
[1743004519073,0.49537,2018.7,2018.5,14.5]
[1743004519275,5.54037142,2018.8,2018.5,14.5]
[1743004519473,0.16403005,2018.6,2018.5,14.5]
[1743004519644,5.54037142,2018.8,2018.5,14.5]
[1743004520144,0.16403005,2018.7,2018.5,14.5]
[1743004520345,5.54037142,2018.8,2018.5,14.5]
[1743004520856,0.16403005,2018.7,2018.5,19.45409]
[1743004521197,0.16403005,2018.7,2018.6,4.95392]
[1743004521557,3.7698,2018.9,2018.6,4.95392]
[1743004521760,0.1611868,2018.8,2018.7,19.45356]
[1743004521967,3.0,2018.9,2018.8,4.95343]
[1743004522171,3.14762653,2018.9,2018.8,4.95343]
[1743004524469,3.14762653,2018.9,2018.7,4.95356]
[1743004524677,3.14762653,2018.9,2018.6,5.72552]
[1743004524989,5.03309686,2018.9,2018.5,24.40822]
[1743004525193,4.13870674,2018.8,2018.5,14.5]
[1743004525396,3.0,2018.7,2018.5,14.5]
[1743004525557,0.14762653,2018.6,2018.5,14.5]
[1743004525755,3.0,2018.7,2018.5,14.5]
[1743004525987,0.14762653,2018.6,2018.5,14.5]
[1743004526160,3.0,2018.7,2018.5,14.5]
[1743004526361,0.14762653,2018.6,2018.5,14.5]
[1743004526597,3.0,2018.7,2018.5,14.5]
[1743004526793,0.14762653,2018.6,2018.5,14.5]
[1743004526999,3.49537,2018.7,2018.5,14.5]
[1743004527204,0.14762653,2018.6,2018.5,14.5]
[1743004527663,3.49537,2018.7,2018.5,14.5]
[1743004528005,4.32721,2018.5,2018.4,8e-06]
[1743004528509,4.47433923,2018.5,2018.4,8e-06]
[1743004528868,9.59838891,2018.5,2018.4,8e-06]
[1743004529197,5.45968217,2018.5,2018.4,8e-06]
[1743004529387,15.2106308,2018.5,2018.4,8e-06]
[1743004529897,19.34933754,2018.5,2018.4,8e-06]
[1743004531077,18.85392754,2018.5,2018.4,8e-06]
[1743004532668,1.3104,2018.4,2018.1,0.07]
[1743004532882,4.89910674,2018.2,2018.1,0.07]
[1743004533074,7.89910674,2018.2,2018.1,0.07]
[1743004533273,8.03786839,2018.2,2018.1,0.07]
[1743004534401,8.29261458,2018.2,2018.1,0.07]
[1743004536072,8.03786839,2018.2,2018.1,0.07]
[1743004536298,10.53244568,2018.2,2018.1,0.07]
[1743004537676,10.78301687,2018.2,2018.1,0.07]
[1743004538376,10.53244568,2018.2,2018.1,0.07]
[1743004538806,10.78526057,2018.2,2018.1,0.07]
[1743004539896,0.7633,2018.0,2017.1,5.75749]
[1743004540097,4.13870674,2017.3,2017.1,0.7999]
[1743004540420,0.13876165,2017.2,2017.1,0.7999]
[1743004540708,4.13870674,2017.3,2017.1,0.7999]
[1743004540911,4.13870674,2017.3,2017.1,5.75745]
[1743004541095,0.13749444,2017.2,2017.1,5.75745]
[1743004541302,4.13870674,2017.3,2017.1,5.75745]
[1743004541690,4.13870674,2017.3,2017.1,5.75739]
[1743004541885,4.13870674,2017.3,2017.1,5.75734]
[1743004542590,4.13870674,2017.3,2017.1,0.7999]
[1743004542789,0.13749444,2017.2,2017.1,0.7999]
[1743004542991,4.35821456,2017.2,2016.7,4.95847]
[1743004543206,4.27620118,2017.2,2016.8,0.7523]
[1743004543410,3.0,2017.1,2017.0,4.95785]
[1743004543598,4.13870674,2017.0,2016.9,14.5]
[1743004543795,4.27620118,2017.0,2016.9,14.5]
[1743004544927,4.27620118,2017.0,2016.9,19.4581]
[1743004545721,4.27620118,2017.0,2016.9,14.5]
[1743004546027,4.27620118,2017.0,2016.9,19.4581]
[1743004547318,4.27620118,2017.0,2016.9,14.5]
[1743004547818,7.27620118,2017.0,2016.9,14.5]
[1743004548393,7.27620118,2017.0,2016.8,0.7523]
[1743004548914,7.27620118,2017.0,2016.9,14.5]
[1743004555931,0.13351052,2016.8,2016.7,21.853067]
[1743004557201,0.13351052,2016.8,2016.4,0.117318]
[1743004557202,3.92721052,2016.8,2016.4,0.117318]
[1743004557400,4.13870674,2016.6,2016.5,5.77947]
[1743004557600,7.13870674,2016.8,2016.6,4.95883]
[1743004557838,4.13870674,2016.8,2016.6,9.91758]
[1743004558133,7.13870674,2016.8,2016.7,4.95859]
[1743004558689,12.04601348,2016.8,2016.4,0.117318]
[1743004558930,7.13870674,2016.5,2016.4,0.117318]
[1743004561689,3.0,2016.5,2016.4,5.076648]
[1743004561889,3.0,2016.6,2016.5,4.959]
[1743004562114,3.0,2016.6,2016.4,5.076648]
[1743004562115,7.13870674,2016.6,2016.4,5.076648]
[1743004563860,7.13870674,2016.6,2016.4,5.076558]
[1743004564011,7.51730112,2016.6,2016.4,5.076508]
[1743004564210,0.7775,2016.9,2016.5,4.95901]
[1743004564455,0.7775,2016.9,2016.4,5.076508]
[1743004564456,4.13870674,2016.6,2016.4,5.076508]
[1743004564745,4.13870674,2016.6,2016.4,10.035748]
[1743004564912,4.13870674,2016.6,2016.5,4.95908]
[1743004565116,3.0,2016.9,2016.7,4.95849]
[1743004565307,7.13870674,2016.9,2016.7,4.95845]
[1743004565503,0.13015979,2016.8,2016.6,5.76381]
[1743004565708,4.13870674,2016.7,2016.6,5.76381]
[1743004566007,4.26886653,2016.7,2016.6,5.76381]
[1743004566238,4.26886653,2016.7,2016.6,0.8051]
[1743004566422,4.26886653,2016.7,2016.4,5.076608]
[1743004566619,4.13870674,2016.7,2016.4,10.035848]
[1743004566809,4.13870674,2016.7,2016.4,10.035748]
[1743004567030,4.13870674,2016.7,2016.5,4.95899]
[1743004567430,0.12875555,2016.6,2016.5,4.95898]
[1743004567611,4.13870674,2016.7,2016.5,4.95898]
[1743004567937,4.13870674,2016.7,2016.4,10.035878]
[1743004567938,0.12875555,2016.6,2016.4,10.035878]
[1743004568135,4.13870674,2016.7,2016.5,4.95908]
[1743004568341,4.13870674,2016.7,2016.4,5.076498]
[1743004568737,4.13870674,2016.7,2016.4,10.035728]
[1743004569041,4.13870674,2016.7,2016.5,4.95901]
[1743004569445,4.13870674,2016.7,2016.4,10.035848]
[1743004569645,4.13870674,2016.7,2016.4,5.076538]
[1743004569948,4.13870674,2016.7,2016.4,0.117318]
[1743004569949,3.0,2016.6,2016.4,0.117318]
[1743004570243,7.93210674,2016.5,2016.4,0.117318]
[1743004570410,36.54810674,2016.5,2016.4,8e-06]
[1743004570611,36.54810674,2016.5,2016.1,0.07]
[1743004570612,0.7934,2016.3,2016.1,0.07]
[1743004570911,3.0,2016.4,2014.9,0.8249]
[1743004570912,0.7934,2015.7,2014.9,0.8249]
[1743004571220,0.11557386,2015.6,2015.5,0.7999]
[1743004571529,4.13870674,2015.7,2015.5,0.7999]
[1743004571730,3.0,2015.6,2015.3,0.825]
[1743004571948,0.1135773,2015.6,2015.4,4.96163]
[1743004572114,4.13870674,2015.5,2015.3,0.825]
[1743004572437,4.13870674,2015.5,2015.4,4.96179]
[1743004572606,3.0,2015.9,2015.6,4.9613]
[1743004572807,3.0,2015.9,2015.8,4.9608]
[1743004573006,4.13870674,2016.0,2015.7,4.96082]
[1743004573242,4.13870674,2015.8,2015.6,4.96106]
[1743004573618,4.13870674,2015.9,2015.7,14.5]
[1743004573815,3.0,2016.1,2015.6,4.96106]
[1743004574029,0.8215,2015.6,2014.7,0.7789]
[1743004574234,0.8215,2015.1,2014.9,4.96301]
[1743004574544,8.007,2015.2,2015.1,4.96253]
[1743004574704,4.13870674,2015.4,2014.9,4.96302]
[1743004574908,3.0,2015.3,2015.0,0.576342]
[1743004575149,3.0,2015.3,2015.1,4.96238]
[1743004575318,3.0,2015.3,2015.2,4.96228]
[1743004575520,3.0,2015.3,2015.1,4.96238]
[1743004575703,3.0,2015.3,2015.0,4.96276]
[1743004575911,4.13870674,2015.1,2014.8,5.7635]
[1743004576207,4.13870674,2015.1,2014.9,4.96287]
[1743004576407,3.0,2015.0,2014.6,4.96366]
[1743004576654,4.13870674,2014.9,2014.6,4.96366]
[1743004576937,3.0,2014.6,2014.4,0.117318]
[1743004577135,7.13870674,2014.5,2014.4,0.117318]
[1743004577474,8.63122037,2014.5,2014.4,0.117318]
[1743004577626,0.8053,2014.3,2012.7,4.96845]
[1743004577941,14.38303482,2014.5,2012.6,15.05]
[1743004577942,0.7525,2013.3,2012.6,15.05]
[1743004578311,5.277,2013.6,2012.7,2.58618732]
[1743004578506,5.277,2013.6,2013.0,4.9677]
[1743004578507,4.13870674,2013.2,2013.0,4.9677]
[1743004578715,4.13870674,2013.2,2012.9,5.77365]
[1743004578951,4.62935743,2013.3,2012.9,0.8059]
[1743004579109,3.0,2013.3,2013.2,4.96707]
[1743004579310,4.62935743,2013.5,2013.2,4.96707]
[1743004579541,3.0,2013.5,2013.2,4.96707]
[1743004580053,4.62935743,2013.4,2013.0,4.96753]
[1743004580753,3.0,2013.5,2013.2,4.96698]